[Event "Titled Tuesday Blitz March 15 Late 2022"]
[White "Melkumyan, Hrant"]
[Black "Andreikin, Dmitry"]
[WhiteFideId "13302485"]
[BlackFideId "4158814"]
[WhiteElo "2918"]
[BlackElo "3021"]
[Result "0-1"]
[Round "04"]
[TimeControl "180+1"]
[Date "2022.03.15"]
[WhiteClock "0:00:12"]
[BlackClock "0:00:13"]

1. c4 {[%clk 0:02:50]}  e6 {[%clk 0:02:58]} 2. Nf3 {[%clk 0:02:48]}  d5 {[%clk 0:02:59]} 3. d4 {[%clk 0:02:49]}  a6 {[%clk 0:02:57]} 4. Nbd2 {[%clk 0:02:47]}  Nf6 {[%clk 0:02:55]} 5. g3 {[%clk 0:02:47]}  dxc4 {[%clk 0:02:50]} 6. Nxc4 {[%clk 0:02:47]}  b5 {[%clk 0:02:51]} 7. Nce5 {[%clk 0:02:46]}  Bb7 {[%clk 0:02:51]} 8. Bg2 {[%clk 0:02:46]}  c5 {[%clk 0:02:50]} 9. O-O {[%clk 0:02:42]}  Ra7 {[%clk 0:02:23]} 10. dxc5 {[%clk 0:02:41]}  Qxd1 {[%clk 0:02:17]} 11. Rxd1 {[%clk 0:02:42]}  Bxc5 {[%clk 0:02:17]} 12. b4 {[%clk 0:02:19]}  Bb6 {[%clk 0:02:08]} 13. a4 {[%clk 0:02:18]}  Ne4 {[%clk 0:01:53]} 14. e3 {[%clk 0:01:23]}  bxa4 {[%clk 0:01:53]} 15. Bb2 {[%clk 0:01:13]}  O-O {[%clk 0:01:47]} 16. Rxa4 {[%clk 0:01:12]}  Rc8 {[%clk 0:01:46]} 17. Nd4 {[%clk 0:01:06]}  h6 {[%clk 0:01:43]} 18. Raa1 {[%clk 0:01:02]}  Bd5 {[%clk 0:01:41]} 19. Nd3 {[%clk 0:00:53]}  Nc6 {[%clk 0:01:33]} 20. Nf4 {[%clk 0:00:50]}  Nxb4 {[%clk 0:01:25]} 21. Nxd5 {[%clk 0:00:50]}  exd5 {[%clk 0:01:26]} 22. Nf5 {[%clk 0:00:44]}  Nxf2 {[%clk 0:01:19]} 23. Rdc1 {[%clk 0:00:30]}  Rxc1+ {[%clk 0:00:28]} 24. Rxc1 {[%clk 0:00:31]}  Ng4 {[%clk 0:00:26]} 25. Rc8+ {[%clk 0:00:30]}  Kh7 {[%clk 0:00:25]} 26. Bh3 {[%clk 0:00:25]}  Nxe3 {[%clk 0:00:19]} 27. Nxe3 {[%clk 0:00:25]}  Bxe3+ {[%clk 0:00:19]} 28. Kf1 {[%clk 0:00:26]}  d4 {[%clk 0:00:19]} 29. Ba3 {[%clk 0:00:21]}  a5 {[%clk 0:00:19]} 30. Ke2 {[%clk 0:00:19]}  Re7 {[%clk 0:00:17]} 31. Kf3 {[%clk 0:00:19]}  g6 {[%clk 0:00:14]} 32. Rc5 {[%clk 0:00:20]}  d3 {[%clk 0:00:13]} 33. Rc1 {[%clk 0:00:12]}  Bxc1 {[%clk 0:00:13]} 0-1


[Site "https://www.chess.com"]

[Event "Titled Tuesday Blitz March 15 Late 2022"]
[White "Mikhalsky, Vladimir"]
[Black "Bashirli, Nail"]
[WhiteFideId "14144352"]
[BlackFideId "13406809"]
[WhiteElo "2301"]
[BlackElo "2333"]
[Result "0-1"]
[Round "04"]
[TimeControl "180+1"]
[Date "2022.03.16"]
[WhiteClock "0:00:07"]
[BlackClock "0:00:15"]

1. c4 {[%clk 0:03:00]}  Nf6 {[%clk 0:03:00]} 2. Nc3 {[%clk 0:03:00]}  e5 {[%clk 0:03:00]} 3. g3 {[%clk 0:02:59]}  Bb4 {[%clk 0:02:45]} 4. Nd5 {[%clk 0:02:58]}  Nc6 {[%clk 0:02:31]} 5. Nxb4 {[%clk 0:02:53]}  Nxb4 {[%clk 0:02:32]} 6. Bg2 {[%clk 0:02:52]}  O-O {[%clk 0:02:32]} 7. a3 {[%clk 0:02:31]}  Nc6 {[%clk 0:02:32]} 8. b4 {[%clk 0:02:32]}  d5 {[%clk 0:02:18]} 9. cxd5 {[%clk 0:02:30]}  Nxd5 {[%clk 0:02:18]} 10. Bb2 {[%clk 0:02:30]}  Bg4 {[%clk 0:02:14]} 11. h3 {[%clk 0:02:27]}  Bh5 {[%clk 0:02:14]} 12. Nf3 {[%clk 0:02:02]}  e4 {[%clk 0:02:09]} 13. Nh4 {[%clk 0:01:57]}  Nf4 {[%clk 0:02:03]} 14. gxf4 {[%clk 0:01:35]}  Qxh4 {[%clk 0:02:00]} 15. Bxe4 {[%clk 0:01:32]}  Qxf4 {[%clk 0:01:45]} 16. Qc2 {[%clk 0:01:30]}  Bg6 {[%clk 0:01:41]} 17. Bxg6 {[%clk 0:01:15]}  hxg6 {[%clk 0:01:42]} 18. O-O-O {[%clk 0:01:00]}  Rad8 {[%clk 0:01:38]} 19. e3 {[%clk 0:00:31]}  Qxf2 {[%clk 0:00:57]} 20. Rdf1 {[%clk 0:00:31]}  Qe2 {[%clk 0:00:57]} 21. h4 {[%clk 0:00:30]}  Qd3 {[%clk 0:00:52]} 22. h5 {[%clk 0:00:30]}  Qxc2+ {[%clk 0:00:50]} 23. Kxc2 {[%clk 0:00:30]}  gxh5 {[%clk 0:00:50]} 24. Rfg1 {[%clk 0:00:26]}  f6 {[%clk 0:00:46]} 25. Rxh5 {[%clk 0:00:25]}  Kf7 {[%clk 0:00:46]} 26. e4 {[%clk 0:00:19]}  Rde8 {[%clk 0:00:41]} 27. d3 {[%clk 0:00:18]}  Rh8 {[%clk 0:00:41]} 28. Rgh1 {[%clk 0:00:17]}  Rxh5 {[%clk 0:00:41]} 29. Rxh5 {[%clk 0:00:17]}  a6 {[%clk 0:00:35]} 30. Kd2 {[%clk 0:00:16]}  Rd8 {[%clk 0:00:33]} 31. b5 {[%clk 0:00:16]}  axb5 {[%clk 0:00:29]} 32. Rxb5 {[%clk 0:00:15]}  b6 {[%clk 0:00:29]} 33. Ke3 {[%clk 0:00:16]}  Rh8 {[%clk 0:00:26]} 34. Rf5 {[%clk 0:00:15]}  Rh2 {[%clk 0:00:23]} 35. Bc3 {[%clk 0:00:14]}  Ne7 {[%clk 0:00:21]} 36. Rb5 {[%clk 0:00:13]}  Rc2 {[%clk 0:00:20]} 37. Kd4 {[%clk 0:00:13]}  Nc6+ {[%clk 0:00:17]} 38. Kc4 {[%clk 0:00:13]}  Ra2 {[%clk 0:00:16]} 39. Rb3 {[%clk 0:00:13]}  Rc2 {[%clk 0:00:15]} 40. Kb5 {[%clk 0:00:13]}  Ne7 {[%clk 0:00:13]} 41. Ka6 {[%clk 0:00:13]}  g5 {[%clk 0:00:13]} 42. Kb7 {[%clk 0:00:13]}  g4 {[%clk 0:00:14]} 43. e5 {[%clk 0:00:13]}  g3 {[%clk 0:00:14]} 44. exf6 {[%clk 0:00:13]}  g2 {[%clk 0:00:14]} 45. Bd4 {[%clk 0:00:13]}  Nf5 {[%clk 0:00:14]} 46. Bg1 {[%clk 0:00:12]}  Rc1 {[%clk 0:00:15]} 47. Bh2 {[%clk 0:00:12]}  Rh1 {[%clk 0:00:15]} 48. Bxc7 {[%clk 0:00:07]}  g1=Q {[%clk 0:00:15]} 49. Bxb6 {[%clk 0:00:07]}  Qg2+ {[%clk 0:00:15]} 50. Ka7 {[%clk 0:00:07]}  Rh8 {[%clk 0:00:15]} 51. Rc3 {[%clk 0:00:07]}  Ra8# {[%clk 0:00:15]} 0-1


[Site "https://www.chess.com"]

[Event "Titled Tuesday Blitz March 15 Late 2022"]
[White "Narayanan.S.L"]
[Black "Goltsev, Dmitry"]
[WhiteFideId "5058422"]
[BlackFideId "24176710"]
[WhiteElo "2494"]
[BlackElo "2273"]
[Result "1-0"]
[Round "04"]
[TimeControl "180+1"]
[Date "2022.03.15"]
[WhiteClock "0:01:13"]
[BlackClock "0:00:10"]

1. d4 {[%clk 0:02:56]}  Nf6 {[%clk 0:02:59]} 2. Nf3 {[%clk 0:02:57]}  e6 {[%clk 0:02:59]} 3. Bg5 {[%clk 0:02:57]}  b6 {[%clk 0:02:59]} 4. Nbd2 {[%clk 0:02:57]}  Bb7 {[%clk 0:02:57]} 5. e4 {[%clk 0:02:57]}  Be7 {[%clk 0:02:56]} 6. Bxf6 {[%clk 0:02:55]}  Bxf6 {[%clk 0:02:56]} 7. c3 {[%clk 0:02:56]}  d6 {[%clk 0:02:56]} 8. Bb5+ {[%clk 0:02:55]}  Nd7 {[%clk 0:02:56]} 9. Qe2 {[%clk 0:02:56]}  a6 {[%clk 0:02:57]} 10. Bd3 {[%clk 0:02:55]}  e5 {[%clk 0:02:56]} 11. dxe5 {[%clk 0:02:55]}  dxe5 {[%clk 0:02:55]} 12. O-O {[%clk 0:02:49]}  Nc5 {[%clk 0:02:55]} 13. Bc2 {[%clk 0:02:47]}  Ne6 {[%clk 0:02:54]} 14. Rfd1 {[%clk 0:02:47]}  O-O {[%clk 0:02:48]} 15. Nc4 {[%clk 0:02:46]}  Qe7 {[%clk 0:02:49]} 16. g3 {[%clk 0:02:46]}  Ng5 {[%clk 0:02:46]} 17. Ne3 {[%clk 0:02:41]}  g6 {[%clk 0:02:42]} 18. h4 {[%clk 0:02:39]}  Nxf3+ {[%clk 0:02:41]} 19. Qxf3 {[%clk 0:02:40]}  Bg7 {[%clk 0:02:42]} 20. Bb3 {[%clk 0:02:40]}  Rad8 {[%clk 0:02:40]} 21. Bd5 {[%clk 0:02:40]}  c6 {[%clk 0:02:40]} 22. Bb3 {[%clk 0:02:41]}  b5 {[%clk 0:02:27]} 23. Rxd8 {[%clk 0:02:30]}  Rxd8 {[%clk 0:02:27]} 24. Rd1 {[%clk 0:02:31]}  Rxd1+ {[%clk 0:02:26]} 25. Qxd1 {[%clk 0:02:31]}  Bf8 {[%clk 0:02:03]} 26. h5 {[%clk 0:02:29]}  Qd6 {[%clk 0:01:56]} 27. Qf3 {[%clk 0:02:28]}  Qe7 {[%clk 0:01:56]} 28. Ng4 {[%clk 0:02:28]}  Bg7 {[%clk 0:01:46]} 29. h6 {[%clk 0:02:24]}  Bh8 {[%clk 0:01:44]} 30. a3 {[%clk 0:02:24]}  Bc8 {[%clk 0:01:42]} 31. Qd1 {[%clk 0:02:18]}  Bxg4 {[%clk 0:01:42]} 32. Qxg4 {[%clk 0:02:18]}  Qd8 {[%clk 0:01:36]} 33. Qf3 {[%clk 0:02:08]}  Bf6 {[%clk 0:01:35]} 34. Kg2 {[%clk 0:02:03]}  Qe7 {[%clk 0:01:30]} 35. Qg4 {[%clk 0:01:53]}  Qd8 {[%clk 0:01:29]} 36. Qf3 {[%clk 0:01:41]}  Qe7 {[%clk 0:01:27]} 37. Qe3 {[%clk 0:01:42]}  Bg5 {[%clk 0:01:18]} 38. Qb6 {[%clk 0:01:40]}  Bxh6 {[%clk 0:01:12]} 39. Qxc6 {[%clk 0:01:40]}  Bf8 {[%clk 0:00:45]} 40. Qxa6 {[%clk 0:01:38]}  Qc5 {[%clk 0:00:45]} 41. Qb7 {[%clk 0:01:36]}  Be7 {[%clk 0:00:43]} 42. Bd5 {[%clk 0:01:34]}  Kg7 {[%clk 0:00:41]} 43. b4 {[%clk 0:01:34]}  Qd6 {[%clk 0:00:40]} 44. Qxb5 {[%clk 0:01:34]}  Qf6 {[%clk 0:00:40]} 45. a4 {[%clk 0:01:32]}  h5 {[%clk 0:00:39]} 46. Qc6 {[%clk 0:01:30]}  Qg5 {[%clk 0:00:36]} 47. Qe8 {[%clk 0:01:30]}  Qf6 {[%clk 0:00:32]} 48. a5 {[%clk 0:01:30]}  Bd8 {[%clk 0:00:30]} 49. c4 {[%clk 0:01:16]}  h4 {[%clk 0:00:29]} 50. c5 {[%clk 0:01:12]}  h3+ {[%clk 0:00:20]} 51. Kxh3 {[%clk 0:01:12]}  Qxf2 {[%clk 0:00:20]} 52. Qxf7+ {[%clk 0:01:12]}  Qxf7 {[%clk 0:00:13]} 53. Bxf7 {[%clk 0:01:13]}  Kxf7 {[%clk 0:00:12]} 54. a6 {[%clk 0:01:14]}  Bb6 {[%clk 0:00:10]} 55. cxb6 {[%clk 0:01:13]} 1-0


[Site "https://www.chess.com"]

[Event "Titled Tuesday Blitz March 15 Late 2022"]
[White "Olsen, Filip Boe"]
[Black "Abdyzhapar, Asylbek"]
[WhiteFideId "1440640"]
[BlackFideId "13800337"]
[WhiteElo "2188"]
[BlackElo "2331"]
[Result "0-1"]
[Round "04"]
[TimeControl "180+1"]
[Date "2022.03.16"]
[WhiteClock "0:00:53"]
[BlackClock "0:02:29"]

1. d4 {[%clk 0:03:00]}  Nf6 {[%clk 0:02:59]} 2. Nf3 {[%clk 0:03:01]}  g6 {[%clk 0:02:59]} 3. Bf4 {[%clk 0:03:01]}  Bg7 {[%clk 0:02:59]} 4. e3 {[%clk 0:03:02]}  d6 {[%clk 0:02:59]} 5. c4 {[%clk 0:03:01]}  O-O {[%clk 0:03:00]} 6. Nc3 {[%clk 0:03:02]}  Nbd7 {[%clk 0:03:00]} 7. Be2 {[%clk 0:03:00]}  c5 {[%clk 0:03:00]} 8. O-O {[%clk 0:02:58]}  a6 {[%clk 0:03:00]} 9. h3 {[%clk 0:02:57]}  Rb8 {[%clk 0:02:59]} 10. Rc1 {[%clk 0:02:51]}  b6 {[%clk 0:02:58]} 11. Nd5 {[%clk 0:02:22]}  Nxd5 {[%clk 0:02:57]} 12. cxd5 {[%clk 0:02:23]}  Nf6 {[%clk 0:02:56]} 13. Qb3 {[%clk 0:02:11]}  Bb7 {[%clk 0:02:50]} 14. dxc5 {[%clk 0:02:03]}  Bxd5 {[%clk 0:02:48]} 15. Qa3 {[%clk 0:01:33]}  bxc5 {[%clk 0:02:48]} 16. b3 {[%clk 0:01:33]}  Ne4 {[%clk 0:02:45]} 17. Bc4 {[%clk 0:01:29]}  Bb7 {[%clk 0:02:42]} 18. Rfd1 {[%clk 0:01:26]}  Qc8 {[%clk 0:02:42]} 19. Qa5 {[%clk 0:01:22]}  Re8 {[%clk 0:02:38]} 20. b4 {[%clk 0:01:09]}  Nc3 {[%clk 0:02:37]} 21. Rd3 {[%clk 0:01:07]}  Ne2+ {[%clk 0:02:35]} 22. Kf1 {[%clk 0:01:01]}  Nxc1 {[%clk 0:02:35]} 23. Ng5 {[%clk 0:00:53]}  e6 {[%clk 0:02:29]} 0-1


[Site "https://www.chess.com"]

[Event "Titled Tuesday Blitz March 15 Late 2022"]
[White "Ozates, Tuna"]
[Black "Mikhailov, Viacheslav"]
[WhiteFideId "6354521"]
[BlackFideId "4187369"]
[WhiteElo "1887"]
[BlackElo "2381"]
[Result "1-0"]
[Round "04"]
[TimeControl "180+1"]
[Date "2022.03.16"]
[WhiteClock "0:00:09"]
[BlackClock "0:00:01"]

1. e4 {[%clk 0:02:57]}  d6 {[%clk 0:02:59]} 2. d4 {[%clk 0:02:57]}  Nf6 {[%clk 0:02:59]} 3. Nc3 {[%clk 0:02:57]}  g6 {[%clk 0:03:00]} 4. f4 {[%clk 0:02:58]}  Bg7 {[%clk 0:03:00]} 5. Nf3 {[%clk 0:02:58]}  O-O {[%clk 0:03:00]} 6. Be3 {[%clk 0:02:59]}  Bg4 {[%clk 0:03:00]} 7. Be2 {[%clk 0:02:58]}  c6 {[%clk 0:02:56]} 8. h3 {[%clk 0:02:58]}  Bxf3 {[%clk 0:02:56]} 9. Bxf3 {[%clk 0:02:59]}  Na6 {[%clk 0:02:50]} 10. e5 {[%clk 0:02:57]}  Ne8 {[%clk 0:02:50]} 11. Qe2 {[%clk 0:02:54]}  Nec7 {[%clk 0:02:44]} 12. O-O-O {[%clk 0:02:53]}  Nb4 {[%clk 0:02:39]} 13. h4 {[%clk 0:02:49]}  Ncd5 {[%clk 0:02:34]} 14. Nxd5 {[%clk 0:02:49]}  Nxd5 {[%clk 0:02:32]} 15. h5 {[%clk 0:02:48]}  Qa5 {[%clk 0:02:26]} 16. Kb1 {[%clk 0:02:48]}  Nxe3 {[%clk 0:02:12]} 17. Qxe3 {[%clk 0:02:48]}  c5 {[%clk 0:02:07]} 18. hxg6 {[%clk 0:02:42]}  hxg6 {[%clk 0:02:08]} 19. Bg4 {[%clk 0:01:36]}  cxd4 {[%clk 0:01:56]} 20. Qh3 {[%clk 0:01:36]}  Rfd8 {[%clk 0:01:45]} 21. e6 {[%clk 0:01:30]}  d3 {[%clk 0:01:28]} 22. Rxd3 {[%clk 0:01:14]}  Qb4 {[%clk 0:01:04]} 23. Rb3 {[%clk 0:01:07]}  Qe4 {[%clk 0:00:48]} 24. exf7+ {[%clk 0:01:02]}  Kf8 {[%clk 0:00:48]} 25. f5 {[%clk 0:00:55]}  Rac8 {[%clk 0:00:39]} 26. Rc1 {[%clk 0:00:45]}  Rc4 {[%clk 0:00:24]} 27. Qh7 {[%clk 0:00:41]}  Kxf7 {[%clk 0:00:07]} 28. fxg6+ {[%clk 0:00:41]}  Kf6 {[%clk 0:00:06]} 29. Rf3+ {[%clk 0:00:40]}  Qxf3 {[%clk 0:00:04]} 30. Bxf3 {[%clk 0:00:37]}  Rh8 {[%clk 0:00:05]} 31. Bxb7 {[%clk 0:00:21]}  Rxh7 {[%clk 0:00:04]} 32. gxh7 {[%clk 0:00:22]}  Kg6 {[%clk 0:00:03]} 33. Ba6 {[%clk 0:00:20]}  Rb4 {[%clk 0:00:02]} 34. Bd3+ {[%clk 0:00:21]}  Kg5 {[%clk 0:00:02]} 35. c3 {[%clk 0:00:20]}  Rb8 {[%clk 0:00:01]} 36. Rf1 {[%clk 0:00:18]}  Bxc3 {[%clk 0:00:01]} 37. Rf5+ {[%clk 0:00:16]}  Kg4 {[%clk 0:00:01]} 38. Rb5 {[%clk 0:00:17]}  Rxb5 {[%clk 0:00:01]} 39. Bxb5 {[%clk 0:00:15]}  Bg7 {[%clk 0:00:02]} 40. Bc6 {[%clk 0:00:14]}  Kf4 {[%clk 0:00:01]} 41. Kc2 {[%clk 0:00:14]}  Ke3 {[%clk 0:00:02]} 42. b4 {[%clk 0:00:14]}  e6 {[%clk 0:00:02]} 43. a4 {[%clk 0:00:14]}  d5 {[%clk 0:00:02]} 44. b5 {[%clk 0:00:13]}  d4 {[%clk 0:00:01]} 45. a5 {[%clk 0:00:10]}  e5 {[%clk 0:00:01]} 46. Bf3 {[%clk 0:00:10]}  e4 {[%clk 0:00:01]} 47. Bh5 {[%clk 0:00:09]} 1-0


[Site "https://www.chess.com"]

[Event "Titled Tuesday Blitz March 15 Late 2022"]
[White "P., Komal Kishore"]
[Black "Cervantes Landeiro, Thalia"]
[WhiteFideId "5016703"]
[BlackFideId "3520498"]
[WhiteElo "2128"]
[BlackElo "2021"]
[Result "0-1"]
[Round "04"]
[TimeControl "180+1"]
[Date "2022.03.16"]
[WhiteClock "0:00:35"]
[BlackClock "0:01:07"]

1. e4 {[%clk 0:03:00]}  c5 {[%clk 0:02:58]} 2. Nf3 {[%clk 0:02:59]}  d6 {[%clk 0:02:58]} 3. Bb5+ {[%clk 0:02:59]}  Nd7 {[%clk 0:02:57]} 4. O-O {[%clk 0:02:59]}  a6 {[%clk 0:02:56]} 5. Be2 {[%clk 0:02:58]}  Ngf6 {[%clk 0:02:55]} 6. d3 {[%clk 0:02:55]}  g6 {[%clk 0:02:52]} 7. c3 {[%clk 0:02:54]}  Bg7 {[%clk 0:02:51]} 8. Nbd2 {[%clk 0:02:54]}  O-O {[%clk 0:02:48]} 9. d4 {[%clk 0:02:52]}  cxd4 {[%clk 0:02:47]} 10. cxd4 {[%clk 0:02:51]}  b5 {[%clk 0:02:47]} 11. Re1 {[%clk 0:02:50]}  Bb7 {[%clk 0:02:46]} 12. Bd3 {[%clk 0:02:48]}  e6 {[%clk 0:02:41]} 13. Nf1 {[%clk 0:02:45]}  Rc8 {[%clk 0:02:39]} 14. Bg5 {[%clk 0:02:39]}  Qb6 {[%clk 0:02:32]} 15. Ng3 {[%clk 0:02:36]}  h6 {[%clk 0:02:24]} 16. Be3 {[%clk 0:02:34]}  Ng4 {[%clk 0:02:24]} 17. Bd2 {[%clk 0:02:31]}  e5 {[%clk 0:02:03]} 18. h3 {[%clk 0:02:27]}  Ngf6 {[%clk 0:02:02]} 19. Be3 {[%clk 0:02:23]}  Qc7 {[%clk 0:01:41]} 20. Rc1 {[%clk 0:02:17]}  Qb8 {[%clk 0:01:41]} 21. a3 {[%clk 0:02:08]}  exd4 {[%clk 0:01:37]} 22. Nxd4 {[%clk 0:02:05]}  d5 {[%clk 0:01:28]} 23. Rxc8 {[%clk 0:01:44]}  Rxc8 {[%clk 0:01:26]} 24. f3 {[%clk 0:01:13]}  Qxg3 {[%clk 0:01:22]} 25. Bf2 {[%clk 0:01:07]}  Qb8 {[%clk 0:01:21]} 26. exd5 {[%clk 0:00:53]}  Nxd5 {[%clk 0:01:19]} 27. Qb3 {[%clk 0:00:42]}  Nc5 {[%clk 0:01:14]} 28. Qc2 {[%clk 0:00:39]}  Nf4 {[%clk 0:01:10]} 29. Bf1 {[%clk 0:00:35]}  Ncd3 {[%clk 0:01:07]} 0-1


[Site "https://www.chess.com"]

[Event "Titled Tuesday Blitz March 15 Late 2022"]
[White "Paravyan, David"]
[Black "Rasulov, Vugar"]
[WhiteFideId "4194985"]
[BlackFideId "13402390"]
[WhiteElo "2569"]
[BlackElo "2560"]
[Result "1-0"]
[Round "04"]
[TimeControl "180+1"]
[Date "2022.03.15"]
[WhiteClock "0:01:07"]
[BlackClock "0:01:00"]

1. e4 {[%clk 0:03:00]}  c5 {[%clk 0:02:59]} 2. Nf3 {[%clk 0:03:01]}  d6 {[%clk 0:02:59]} 3. d4 {[%clk 0:03:01]}  cxd4 {[%clk 0:03:00]} 4. Nxd4 {[%clk 0:03:02]}  Nf6 {[%clk 0:03:01]} 5. Nc3 {[%clk 0:03:02]}  a6 {[%clk 0:03:01]} 6. Bg5 {[%clk 0:03:03]}  e6 {[%clk 0:03:00]} 7. f4 {[%clk 0:03:03]}  Be7 {[%clk 0:03:00]} 8. Qf3 {[%clk 0:03:01]}  Nbd7 {[%clk 0:03:01]} 9. O-O-O {[%clk 0:03:00]}  Qc7 {[%clk 0:03:01]} 10. g4 {[%clk 0:03:00]}  b5 {[%clk 0:03:02]} 11. Bxf6 {[%clk 0:02:59]}  Nxf6 {[%clk 0:03:02]} 12. g5 {[%clk 0:02:59]}  Nd7 {[%clk 0:03:03]} 13. f5 {[%clk 0:02:59]}  Nc5 {[%clk 0:03:04]} 14. f6 {[%clk 0:02:53]}  gxf6 {[%clk 0:03:04]} 15. gxf6 {[%clk 0:02:54]}  Bf8 {[%clk 0:03:05]} 16. a3 {[%clk 0:02:52]}  Rb8 {[%clk 0:03:04]} 17. Qe3 {[%clk 0:02:09]}  h5 {[%clk 0:02:59]} 18. Kb1 {[%clk 0:02:06]}  b4 {[%clk 0:02:58]} 19. Nd5 {[%clk 0:01:56]}  Qb7 {[%clk 0:02:19]} 20. axb4 {[%clk 0:01:55]}  Bh6 {[%clk 0:02:18]} 21. Qe1 {[%clk 0:01:47]}  exd5 {[%clk 0:02:15]} 22. exd5+ {[%clk 0:01:47]}  Kf8 {[%clk 0:02:15]} 23. Qe7+ {[%clk 0:01:48]}  Kg8 {[%clk 0:02:07]} 24. Nc6 {[%clk 0:01:21]}  Bg4 {[%clk 0:02:01]} 25. Rg1 {[%clk 0:01:14]}  Nd7 {[%clk 0:01:03]} 26. Nxb8 {[%clk 0:01:08]}  Bf8 {[%clk 0:01:00]} 27. Qxd7 {[%clk 0:01:07]} 1-0


[Site "https://www.chess.com"]

[Event "Titled Tuesday Blitz March 15 Late 2022"]
[White "Perez Leiva, Jerzy Jesus"]
[Black "Oro, Luis"]
[WhiteFideId "3524337"]
[BlackFideId "104094"]
[WhiteElo "2261"]
[BlackElo "2267"]
[Result "0-1"]
[Round "04"]
[TimeControl "180+1"]
[Date "2022.03.16"]
[WhiteClock "0:00:04"]
[BlackClock "0:00:16"]

1. e4 {[%clk 0:03:00]}  c5 {[%clk 0:02:57]} 2. Nf3 {[%clk 0:03:00]}  d6 {[%clk 0:02:57]} 3. d4 {[%clk 0:03:00]}  cxd4 {[%clk 0:02:58]} 4. Nxd4 {[%clk 0:03:01]}  Nf6 {[%clk 0:02:58]} 5. Nc3 {[%clk 0:03:01]}  a6 {[%clk 0:02:59]} 6. Bg5 {[%clk 0:03:02]}  e6 {[%clk 0:02:59]} 7. f4 {[%clk 0:03:02]}  h6 {[%clk 0:02:56]} 8. Bh4 {[%clk 0:02:59]}  Qb6 {[%clk 0:02:56]} 9. Qd3 {[%clk 0:02:41]}  Qxb2 {[%clk 0:02:34]} 10. Rb1 {[%clk 0:02:41]}  Qa3 {[%clk 0:02:34]} 11. f5 {[%clk 0:02:41]}  Be7 {[%clk 0:02:28]} 12. fxe6 {[%clk 0:02:41]}  fxe6 {[%clk 0:02:27]} 13. e5 {[%clk 0:01:52]}  dxe5 {[%clk 0:02:20]} 14. Bxf6 {[%clk 0:01:52]}  Bxf6 {[%clk 0:02:09]} 15. Qg6+ {[%clk 0:01:42]}  Ke7 {[%clk 0:01:56]} 16. Nb3 {[%clk 0:01:06]}  Qb4 {[%clk 0:01:42]} 17. Nd2 {[%clk 0:00:36]}  Qxc3 {[%clk 0:01:38]} 18. Bd3 {[%clk 0:00:37]}  Nd7 {[%clk 0:01:22]} 19. O-O {[%clk 0:00:37]}  Qxd2 {[%clk 0:01:09]} 20. Rxf6 {[%clk 0:00:37]}  gxf6 {[%clk 0:01:04]} 21. Qg7+ {[%clk 0:00:37]}  Kd6 {[%clk 0:01:04]} 22. Qxh8 {[%clk 0:00:38]}  e4 {[%clk 0:00:56]} 23. Bf1 {[%clk 0:00:27]}  Kc7 {[%clk 0:00:48]} 24. a4 {[%clk 0:00:14]}  e3 {[%clk 0:00:32]} 25. Qxh6 {[%clk 0:00:11]}  Qf2+ {[%clk 0:00:32]} 26. Kh1 {[%clk 0:00:12]}  e2 {[%clk 0:00:32]} 27. Bxe2 {[%clk 0:00:12]}  Qxe2 {[%clk 0:00:32]} 28. a5 {[%clk 0:00:11]}  Qe5 {[%clk 0:00:24]} 29. h4 {[%clk 0:00:09]}  Nc5 {[%clk 0:00:20]} 30. h5 {[%clk 0:00:01]}  Bd7 {[%clk 0:00:19]} 31. Qg6 {[%clk 0:00:02]}  Rh8 {[%clk 0:00:18]} 32. h6 {[%clk 0:00:02]}  Qf4 {[%clk 0:00:17]} 33. h7 {[%clk 0:00:02]}  Qf5 {[%clk 0:00:16]} 34. Qg7 {[%clk 0:00:02]}  Rxh7+ {[%clk 0:00:15]} 35. Qxh7 {[%clk 0:00:03]}  Qxh7+ {[%clk 0:00:16]} 36. Kg1 {[%clk 0:00:04]}  Qxc2 {[%clk 0:00:16]} 0-1


[Site "https://www.chess.com"]

[Event "Titled Tuesday Blitz March 15 Late 2022"]
[White "Petesch, Gabriel"]
[Black "Matinian, Nikita"]
[WhiteFideId "2032465"]
[BlackFideId "24129100"]
[WhiteElo "2374"]
[BlackElo "2422"]
[Result "0-1"]
[Round "04"]
[TimeControl "180+1"]
[Date "2022.03.15"]
[WhiteClock "0:00:02"]
[BlackClock "0:01:12"]

1. g3 {[%clk 0:02:59]}  e5 {[%clk 0:02:59]} 2. Bg2 {[%clk 0:02:56]}  Nc6 {[%clk 0:03:00]} 3. c3 {[%clk 0:02:55]}  Nf6 {[%clk 0:02:58]} 4. Nf3 {[%clk 0:02:54]}  e4 {[%clk 0:02:56]} 5. Nd4 {[%clk 0:02:50]}  h5 {[%clk 0:02:54]} 6. d3 {[%clk 0:02:47]}  d5 {[%clk 0:02:47]} 7. Nxc6 {[%clk 0:02:45]}  bxc6 {[%clk 0:02:46]} 8. dxe4 {[%clk 0:02:41]}  Nxe4 {[%clk 0:02:47]} 9. Bxe4 {[%clk 0:02:35]}  dxe4 {[%clk 0:02:48]} 10. Qxd8+ {[%clk 0:02:35]}  Kxd8 {[%clk 0:02:49]} 11. Nd2 {[%clk 0:02:27]}  f5 {[%clk 0:02:46]} 12. Nc4 {[%clk 0:02:27]}  Ke7 {[%clk 0:02:25]} 13. Bg5+ {[%clk 0:02:22]}  Ke6 {[%clk 0:02:25]} 14. Na5 {[%clk 0:02:21]}  c5 {[%clk 0:02:15]} 15. O-O-O {[%clk 0:02:21]}  Ba6 {[%clk 0:02:13]} 16. Rd2 {[%clk 0:02:17]}  Bd6 {[%clk 0:02:11]} 17. Rhd1 {[%clk 0:02:00]}  Rab8 {[%clk 0:01:51]} 18. Bf4 {[%clk 0:01:30]}  Rb6 {[%clk 0:01:39]} 19. b3 {[%clk 0:01:01]}  h4 {[%clk 0:01:38]} 20. Kb2 {[%clk 0:00:50]}  h3 {[%clk 0:01:38]} 21. Kc2 {[%clk 0:00:29]}  Rg8 {[%clk 0:01:28]} 22. Bg5 {[%clk 0:00:22]}  Rh8 {[%clk 0:01:26]} 23. Bf4 {[%clk 0:00:15]}  Rh5 {[%clk 0:01:25]} 24. Nc4 {[%clk 0:00:06]}  Bxc4 {[%clk 0:01:25]} 25. bxc4 {[%clk 0:00:07]}  g5 {[%clk 0:01:24]} 26. Bxd6 {[%clk 0:00:06]}  cxd6 {[%clk 0:01:21]} 27. Rb1 {[%clk 0:00:04]}  f4 {[%clk 0:01:15]} 28. Rxb6 {[%clk 0:00:03]}  axb6 {[%clk 0:01:15]} 29. Rd5 {[%clk 0:00:04]}  e3 {[%clk 0:01:12]} 30. fxe3 {[%clk 0:00:02]}  fxg3 {[%clk 0:01:12]} 0-1


[Site "https://www.chess.com"]